bitfinex/quotes_BTCUSD_20251012
["timestamp","ask_amount","ask_price","bid_price","bid_amount"]
[1760300109480,0.341248,114860.0,114850.0,0.30180018]
[1760300109728,0.88488246,114860.0,114850.0,0.30180018]
[1760300111140,1.05900748,114860.0,114850.0,0.30180018]
[1760300111716,1.05900748,114860.0,114850.0,0.26262018]
[1760300111942,1.05900748,114860.0,114850.0,0.30180018]
[1760300112773,6.16371336,114860.0,114850.0,0.04184]
[1760300113107,6.70734782,114860.0,114850.0,0.04184]
[1760300113542,6.7260574,114860.0,114850.0,0.04184]
[1760300113752,1.7260574,114860.0,114850.0,0.04184]
[1760300113966,6.7260574,114860.0,114850.0,0.04184]
[1760300114196,6.7270574,114860.0,114850.0,0.04184]
[1760300114407,0.54432241,114830.0,114820.0,0.04184]
[1760300114618,6.08795687,114830.0,114820.0,0.04184]
[1760300115099,0.34,114830.0,114820.0,0.30184568]
[1760300115330,0.88363446,114830.0,114820.0,0.12766]
[1760300115542,0.88363446,114830.0,114820.0,0.30184568]
[1760300115756,1.10185331,114830.0,114820.0,0.30184568]
[1760300116205,1.27602382,114830.0,114820.0,0.30184568]
[1760300119571,1.02467882,114830.0,114820.0,0.30184568]
[1760300122156,6.02467882,114830.0,114820.0,0.08848]
[1760300122281,6.02467882,114830.0,114820.0,0.26266568]
[1760300122471,6.02467882,114830.0,114820.0,0.08848]
[1760300122963,6.11339816,114830.0,114820.0,0.08848]
[1760300123490,6.02467882,114830.0,114820.0,0.08848]
[1760300125639,6.02467882,114830.0,114820.0,0.04184]
[1760300125837,1.07360298,114830.0,114820.0,0.04184]
[1760300126139,6.07360298,114830.0,114820.0,0.04184]
[1760300126974,1.07360298,114830.0,114820.0,0.04184]
[1760300127176,6.16332232,114830.0,114820.0,0.04184]
[1760300127713,1.16332232,114830.0,114820.0,0.04184]
[1760300127939,6.16332232,114830.0,114820.0,0.04184]
[1760300128251,1.16332232,114830.0,114820.0,0.04184]
[1760300128596,6.16432232,114830.0,114820.0,0.04184]
[1760300130178,6.07560298,114830.0,114820.0,0.04184]
[1760300130800,6.07460298,114830.0,114820.0,0.04184]
[1760300130997,6.07560298,114830.0,114820.0,0.04184]
[1760300131197,6.07460298,114830.0,114820.0,0.04184]
[1760300131399,6.07560298,114830.0,114820.0,0.04184]
[1760300132126,6.16432232,114830.0,114820.0,0.04184]
[1760300133090,6.07560298,114830.0,114820.0,0.04184]
[1760300134107,6.07560298,114830.0,114820.0,0.06732]
[1760300134312,6.07560298,114830.0,114820.0,0.08709]
[1760300134679,6.07560298,114830.0,114820.0,0.08879]
[1760300136496,6.07560298,114830.0,114820.0,0.04354]
[1760300136733,1.16432232,114830.0,114820.0,0.04354]
[1760300136972,6.16432232,114830.0,114820.0,0.04354]
[1760300137769,5.56509467,114830.0,114820.0,0.26297568]
[1760300137921,6.07560298,114830.0,114820.0,0.08879]
[1760300138125,6.07560298,114830.0,114820.0,0.26297568]
[1760300138760,5.56509467,114830.0,114820.0,0.26297568]
[1760300138909,1.07560298,114830.0,114820.0,0.30345568]
[1760300139128,1.07560298,114830.0,114820.0,0.26297568]
[1760300139935,1.16432232,114830.0,114820.0,0.04354]
[1760300140138,6.16432232,114830.0,114820.0,0.21772568]
[1760300140378,6.16432232,114830.0,114820.0,0.26297568]
[1760300142034,0.36077226,114830.0,114820.0,0.30345568]
[1760300142237,0.002,114830.0,114820.0,0.30345568]
[1760300142639,0.342,114830.0,114820.0,0.30345568]
[1760300143022,0.341,114830.0,114820.0,0.30345568]
[1760300143405,0.85150831,114830.0,114820.0,0.30345568]
[1760300143727,0.34,114830.0,114820.0,0.30345568]
[1760300143934,0.00055939,114850.0,114840.0,0.17415534]
[1760300144140,0.34055939,114850.0,114840.0,0.25870534]
[1760300144364,0.8510677,114850.0,114840.0,0.25870534]
[1760300144585,1.02520788,114850.0,114840.0,0.21960534]
[1760300147895,1.02520788,114850.0,114840.0,0.25870534]
[1760300148073,1.02520788,114850.0,114840.0,0.21960534]
[1760300150676,1.02520788,114850.0,114840.0,0.02047]
[1760300150871,1.02520788,114850.0,114840.0,0.04545]
[1760300151678,6.05242265,114850.0,114840.0,0.04545]
[1760300152095,6.02520788,114850.0,114840.0,0.04545]
[1760300152510,6.02520788,114850.0,114840.0,0.21960534]
[1760300154111,6.02520788,114850.0,114840.0,0.04545]
[1760300154299,0.51415534,114840.0,114820.0,0.23749041]
[1760300154629,0.51415534,114840.0,114830.0,0.21962051]
[1760300154630,1.05482141,114840.0,114830.0,0.21962051]
[1760300154840,1.05482141,114840.0,114830.0,0.04545]
[1760300155581,1.56532972,114840.0,114830.0,0.04545]
[1760300156680,1.56532972,114840.0,114830.0,0.21962051]
[1760300158116,0.00055939,114850.0,114840.0,0.17415534]
[1760300158318,1.02520788,114850.0,114840.0,0.08455]
[1760300158573,1.02520788,114850.0,114840.0,0.25870534]
[1760300159372,1.02620788,114850.0,114840.0,0.25870534]
[1760300160500,1.02520788,114850.0,114840.0,0.25870534]
[1760300161112,1.02520788,114850.0,114840.0,0.21960534]
[1760300161316,1.02520788,114850.0,114840.0,0.25792534]
[1760300162500,0.34055939,114850.0,114840.0,0.25792534]
[1760300162778,0.5110677,114850.0,114840.0,0.25792534]
[1760300163103,0.8510677,114850.0,114840.0,0.25792534]
[1760300164795,0.93978704,114850.0,114840.0,0.25792534]
[1760300166071,0.8510677,114850.0,114840.0,0.25792534]
[1760300166972,0.34055939,114850.0,114840.0,0.25792534]
[1760300167181,0.8510677,114850.0,114840.0,0.25792534]
[1760300173474,0.34055939,114850.0,114840.0,0.25792534]
[1760300173694,0.8510677,114850.0,114840.0,0.25792534]
[1760300176443,0.34055939,114850.0,114840.0,0.25792534]
[1760300176650,0.8510677,114850.0,114840.0,0.25792534]
[1760300177708,1.48886007,114850.0,114840.0,0.25792534]
[1760300181242,1.48886007,114850.0,114840.0,0.29976534]
[1760300188123,0.34055939,114850.0,114840.0,0.29976534]
[1760300188296,1.48886007,114850.0,114840.0,0.29976534]
[1760300189495,0.91470973,114850.0,114840.0,0.29976534]
[1760300189696,0.00055939,114850.0,114840.0,0.38929486]
[1760300190330,0.57470973,114850.0,114840.0,0.38929486]
[1760300190578,0.91470973,114850.0,114840.0,0.39803216]
[1760300191563,0.91470973,114850.0,114840.0,0.39903216]
[1760300191785,0.34055939,114850.0,114840.0,0.39903216]
[1760300191963,0.91470973,114850.0,114840.0,0.39803216]
[1760300192168,0.34055939,114850.0,114840.0,0.40003216]
[1760300192338,0.91470973,114850.0,114840.0,0.40003216]
[1760300193966,0.34055939,114850.0,114840.0,0.40003216]
[1760300194172,0.00012931,114860.0,114850.0,0.17414018]
[1760300194386,0.57427965,114860.0,114850.0,0.6620897]
[1760300194594,0.00012931,114860.0,114850.0,0.6879097]
[1760300195032,0.57427965,114860.0,114850.0,0.6879097]
[1760300195446,0.57427965,114860.0,114850.0,0.6899097]
[1760300196419,0.00012931,114860.0,114850.0,0.6899097]
[1760300196621,0.57427965,114860.0,114850.0,0.6899097]
[1760300196833,0.00012931,114860.0,114850.0,0.6899097]
[1760300197885,0.00012931,114860.0,114850.0,0.3499097]
[1760300199799,0.00068864,114860.0,114850.0,0.3499097]
[1760300200385,0.00068864,114860.0,114850.0,0.37608904]
[1760300203912,0.57483898,114860.0,114850.0,0.37608904]
[1760300206432,0.57483898,114860.0,114850.0,0.28655952]
[1760300206635,0.91483898,114860.0,114850.0,0.26038018]
[1760300207259,0.91483898,114860.0,114850.0,0.25938018]
[1760300207598,0.91483898,114860.0,114850.0,0.25838018]
[1760300209646,0.34068864,114860.0,114850.0,0.25838018]
[1760300209854,0.91483898,114860.0,114850.0,0.25838018]
[1760300210718,0.34068864,114860.0,114850.0,0.25838018]
[1760300210921,0.91483898,114860.0,114850.0,0.25838018]
[1760300214028,0.91483898,114860.0,114850.0,0.25823018]
[1760300216539,0.34068864,114860.0,114850.0,0.25823018]
[1760300216750,0.91483898,114860.0,114850.0,0.25823018]
[1760300222159,0.34068864,114860.0,114850.0,0.25823018]
[1760300222365,0.91483898,114860.0,114850.0,0.25823018]
[1760300224416,1.57770866,114860.0,114850.0,0.04567]
[1760300224633,1.75183368,114860.0,114850.0,0.17414018]
[1760300224849,1.17768334,114860.0,114850.0,0.17414018]
[1760300225061,1.66311434,114860.0,114850.0,0.19877018]
[1760300225487,0.91483898,114860.0,114850.0,0.25616018]
[1760300228792,0.34068864,114860.0,114850.0,0.25616018]
[1760300228933,0.91483898,114860.0,114850.0,0.25616018]
[1760300229762,1.088964,114860.0,114850.0,0.21882018]
[1760300230854,0.91483898,114860.0,114850.0,0.21882018]
[1760300231363,0.34068864,114860.0,114850.0,0.25616018]
[1760300231765,0.91483898,114860.0,114850.0,0.25616018]
[1760300234740,0.34068864,114860.0,114850.0,0.25616018]
[1760300234941,0.91483898,114860.0,114850.0,0.25616018]
[1760300239621,0.85091977,114860.0,114850.0,0.25616018]
[1760300239770,1.02504479,114860.0,114850.0,0.25616018]
[1760300239970,0.85091977,114860.0,114850.0,0.21882018]
[1760300240401,1.02504479,114860.0,114850.0,0.21882018]
[1760300240747,1.02504479,114860.0,114850.0,0.04468]
[1760300240961,0.51414018,114850.0,114840.0,0.23646534]
[1760300241206,1.53460244,114850.0,114840.0,0.23646534]
[1760300241416,1.57822595,114850.0,114840.0,0.04184]
[1760300241635,6.57822595,114850.0,114840.0,0.04184]
[1760300243463,6.59702204,114850.0,114840.0,0.04184]
[1760300243637,5.57655978,114850.0,114840.0,0.04184]
[1760300243841,6.62717394,114850.0,114840.0,0.04184]
[1760300244233,6.65267491,114850.0,114840.0,0.04184]
[1760300245253,1.65367491,114850.0,114840.0,0.04184]
[1760300245427,6.65367491,114850.0,114840.0,0.04184]
[1760300246074,6.65467491,114850.0,114840.0,0.04184]
[1760300246748,1.65467491,114850.0,114840.0,0.04184]
[1760300246953,6.65467491,114850.0,114840.0,0.04184]
[1760300247160,6.67095862,114850.0,114840.0,0.04184]
[1760300247368,1.65467491,114850.0,114840.0,0.04184]
[1760300247599,6.65467491,114850.0,114840.0,0.04184]
[1760300248026,1.65467491,114850.0,114840.0,0.04184]
[1760300248251,1.67095795,114850.0,114840.0,0.04184]
[1760300248470,6.67095795,114850.0,114840.0,0.04184]
[1760300248897,1.67095795,114850.0,114840.0,0.04184]
[1760300249125,6.67095795,114850.0,114840.0,0.04184]
[1760300251071,1.67095795,114850.0,114840.0,0.04184]
[1760300251241,6.67095795,114850.0,114840.0,0.04184]
[1760300251683,1.67095795,114850.0,114840.0,0.04184]
[1760300251891,6.67095795,114850.0,114840.0,0.04184]
[1760300252292,1.67095795,114850.0,114840.0,0.04184]
[1760300252490,6.6790907,114850.0,114840.0,0.04184]
[1760300253608,6.64545698,114850.0,114840.0,0.04184]
[1760300254286,6.65358832,114850.0,114840.0,0.04184]
[1760300254913,1.63730528,114850.0,114840.0,0.04184]
[1760300255059,6.60715338,114850.0,114840.0,0.04184]
[1760300255277,6.63730528,114850.0,114840.0,0.04184]
[1760300257303,6.65356446,114850.0,114840.0,0.04184]
[1760300258153,1.65356446,114850.0,114840.0,0.04184]
[1760300258327,6.65356446,114850.0,114840.0,0.04184]
[1760300258679,1.65356446,114850.0,114840.0,0.04184]
[1760300259050,6.65356446,114850.0,114840.0,0.04184]
[1760300259394,6.63730528,114850.0,114840.0,0.04184]
[1760300259714,1.63730528,114850.0,114840.0,0.04184]
[1760300259912,6.63730528,114850.0,114840.0,0.04184]
[1760300260113,1.63730528,114850.0,114840.0,0.04184]
[1760300260454,6.63730528,114850.0,114840.0,0.04184]
[1760300261059,6.63730528,114850.0,114840.0,0.25992534]
[1760300261060,0.53102722,114850.0,114840.0,0.25992534]
[1760300261273,0.53102722,114850.0,114840.0,0.29889534]
[1760300261486,0.51223113,114850.0,114840.0,0.29889534]
[1760300261948,0.68637131,114850.0,114840.0,0.25992534]
[1760300262154,1.53560244,114850.0,114840.0,0.25992534]
[1760300262570,1.53460244,114850.0,114840.0,0.25992534]
[1760300263107,1.02437131,114850.0,114840.0,0.25992534]
[1760300265703,0.85023113,114850.0,114840.0,0.25992534]
[1760300265906,1.02437131,114850.0,114840.0,0.25992534]
[1760300266648,0.85023113,114850.0,114840.0,0.29680534]
[1760300266854,0.17482518,114860.0,114850.0,0.17414018]
[1760300266855,0.03084054,114860.0,114850.0,0.17414018]
[1760300267071,0.03084054,114860.0,114850.0,0.25486018]
[1760300267234,0.37084054,114860.0,114850.0,0.25486018]
[1760300267630,0.00068864,114860.0,114850.0,0.25486018]
[1760300268189,0.68504479,114860.0,114850.0,0.21798018]
[1760300269841,0.00068864,114860.0,114850.0,0.25486018]
[1760300270057,0.51091977,114860.0,114850.0,0.25486018]
[1760300270587,0.68504479,114860.0,114850.0,0.19311018]
[1760300270800,0.68504479,114860.0,114840.0,0.23518534]
[1760300270801,0.86765418,114850.0,114840.0,0.23518534]
[1760300271055,1.88811644,114850.0,114840.0,0.26005534]
[1760300271814,0.85023113,114850.0,114840.0,0.29693534]
[1760300285144,1.02437131,114850.0,114840.0,0.29693534]
[1760300285628,0.85023113,114850.0,114840.0,0.29693534]
[1760300286356,1.02437131,114850.0,114840.0,0.29693534]
[1760300286599,6.69775656,114850.0,114840.0,0.04184]
[1760300287349,6.7059114,114850.0,114840.0,0.04184]
[1760300287644,1.74572726,114850.0,114840.0,0.04184]
[1760300287851,6.74672726,114850.0,114840.0,0.04184]
[1760300288150,1.74772726,114850.0,114840.0,0.04184]
[1760300288394,6.74772726,114850.0,114840.0,0.04184]
[1760300289959,6.65900792,114850.0,114840.0,0.04184]
[1760300290532,1.65900792,114850.0,114840.0,0.04184]
[1760300290806,6.65900792,114850.0,114840.0,0.04184]
[1760300291305,6.61919206,114850.0,114840.0,0.04184]
[1760300291743,5.57322883,114850.0,114840.0,0.04184]
[1760300291948,6.59369109,114850.0,114840.0,0.04184]
[1760300292296,6.59846056,114850.0,114840.0,0.04184]
[1760300292463,1.59846056,114850.0,114840.0,0.04184]
[1760300292909,6.59846056,114850.0,114840.0,0.04184]
[1760300293034,1.59846056,114850.0,114840.0,0.04184]
[1760300293506,6.59846056,114850.0,114840.0,0.04184]
[1760300293899,1.59846056,114850.0,114840.0,0.04184]
[1760300294105,0.53101304,114850.0,114840.0,0.29433534]
[1760300294306,0.51223113,114850.0,114840.0,0.29433534]
[1760300295097,0.85223113,114850.0,114840.0,0.29433534]
[1760300295268,0.51123113,114850.0,114840.0,0.29433534]
[1760300295475,0.85123113,114850.0,114840.0,0.29433534]
[1760300295674,0.85023113,114850.0,114840.0,0.29433534]
[1760300295989,1.02437131,114850.0,114840.0,0.29433534]
[1760300298041,0.00068864,114860.0,114850.0,0.17414018]
[1760300298194,0.51091977,114860.0,114850.0,0.25248018]
[1760300299260,0.85091977,114860.0,114850.0,0.25248018]
[1760300299659,0.91460651,114860.0,114850.0,0.25248018]
[1760300300659,0.57460651,114860.0,114850.0,0.25248018]
[1760300301931,0.57460651,114860.0,114850.0,0.27866501]
[1760300302350,0.00068864,114860.0,114850.0,0.27866501]
[1760300302569,0.57460651,114860.0,114850.0,0.27866501]
[1760300303859,0.00068864,114860.0,114850.0,0.36819453]
[1760300304055,0.17489216,114860.0,114850.0,0.36819453]
[1760300304275,0.91411787,114880.0,114870.0,0.17410986]
[1760300304514,0.57461255,114880.0,114870.0,0.25244986]
[1760300304856,0.57461255,114880.0,114870.0,0.27863046]
[1760300306308,0.00069468,114880.0,114870.0,0.27863046]
[1760300306546,0.57461255,114880.0,114870.0,0.27863046]
[1760300307375,0.00069468,114880.0,114870.0,0.27963046]
[1760300307754,0.57461255,114880.0,114870.0,0.28063046]
[1760300308163,0.00069468,114880.0,114870.0,0.37015998]
[1760300310241,0.00181307,114880.0,114870.0,0.37015998]
[1760300310418,0.00181307,114880.0,114870.0,0.91789725]
[1760300310997,0.00181307,114880.0,114870.0,0.34397938]
[1760300314298,0.00181307,114880.0,114870.0,0.37465938]
[1760300317810,0.00181307,114880.0,114870.0,0.94857725]
[1760300318460,0.00181307,114880.0,114870.0,0.37465938]
[1760300318461,0.57573094,114880.0,114870.0,0.37465938]
[1760300318693,0.00181307,114880.0,114870.0,0.37465938]
[1760300320209,0.57573094,114880.0,114870.0,0.37465938]
[1760300320703,0.57573094,114880.0,114870.0,0.28512986]
[1760300321223,0.57573094,114880.0,114870.0,0.28412986]
[1760300322219,0.57573094,114880.0,114870.0,0.28312986]
[1760300322653,1.66374351,114880.0,114870.0,0.07371]
[1760300322853,1.08982564,114880.0,114870.0,0.28350986]
[1760300323843,1.0897647,114880.0,114870.0,0.32534986]
[1760300324238,0.91567,114880.0,114870.0,0.32534986]
[1760300328770,0.91567,114880.0,114870.0,0.29466986]
[1760300329525,0.34175213,114880.0,114870.0,0.29466986]
[1760300329730,0.91567,114880.0,114870.0,0.29466986]
[1760300331930,0.91567,114880.0,114870.0,0.25897986]
[1760300332129,0.91567,114880.0,114870.0,0.29618986]
[1760300332458,0.34175213,114880.0,114870.0,0.29618986]
[1760300332588,0.91567,114880.0,114870.0,0.29618986]
[1760300333212,0.92382243,114880.0,114870.0,0.29618986]
[1760300334273,0.91567,114880.0,114870.0,0.29618986]
[1760300336689,0.00175213,114880.0,114870.0,0.29618986]
[1760300336844,0.57567,114880.0,114870.0,0.29618986]
[1760300337045,0.00175213,114880.0,114870.0,0.38571938]
[1760300338755,1e-08,114880.0,114870.0,0.95963725]
[1760300339784,1e-08,114880.0,114870.0,0.38571938]
[1760300339947,1e-08,114880.0,114870.0,0.96063725]
[1760300340149,1e-08,114880.0,114870.0,0.96163725]
[1760300341610,1e-08,114880.0,114870.0,1.58970701]
[1760300341811,1e-08,114880.0,114870.0,1.59070701]
[1760300341945,1e-08,114880.0,114870.0,1.690707]
[1760300342150,1e-08,114880.0,114870.0,1.59070701]
[1760300342341,1e-08,114880.0,114870.0,1.690707]
[1760300342539,1e-08,114880.0,114870.0,1.7168799]
[1760300343187,1e-08,114880.0,114870.0,0.90904416]
[1760300343391,1e-08,114880.0,114870.0,2.0568799]
[1760300343595,0.0002,114910.0,114900.0,0.1740644]
[1760300343795,0.00024945,114910.0,114900.0,0.85625179]
[1760300344001,0.00024945,114910.0,114900.0,0.92027179]
[1760300344500,0.0002,114920.0,114910.0,0.17404925]
[1760300344841,0.0002,114920.0,114910.0,0.32093877]
[1760300345032,0.0002,114920.0,114910.0,0.34633877]
[1760300345895,0.0002,114920.0,114910.0,0.92025664]
[1760300346093,0.0002,114920.0,114910.0,0.34633877]
[1760300347063,0.0002,114920.0,114910.0,0.34733877]
[1760300347866,0.0002,114920.0,114910.0,0.34833877]
[1760300349463,0.0002,114920.0,114910.0,0.92225664]
[1760300349802,0.00243583,114920.0,114910.0,0.92225664]
[1760300350004,0.00243583,114920.0,114910.0,0.34833877]
[1760300355078,0.5763537,114920.0,114910.0,0.34833877]
[1760300355277,0.5763537,114920.0,114910.0,0.25880925]
[1760300356328,0.5763537,114920.0,114910.0,0.25780925]
[1760300356530,1.17910715,114920.0,114910.0,0.08276]
[1760300356895,1.09038781,114920.0,114910.0,0.25680925]
[1760300357433,1.09038781,114920.0,114910.0,0.29860925]
[1760300357748,0.9163537,114920.0,114910.0,0.29860925]
[1760300358323,0.34243583,114920.0,114910.0,0.29860925]
[1760300358584,0.9163537,114920.0,114910.0,0.29860925]
[1760300361569,0.85212435,114920.0,114910.0,0.29860925]
[1760300363196,0.34243583,114920.0,114910.0,0.29860925]
[1760300363404,0.85212435,114920.0,114910.0,0.29860925]
[1760300363609,0.34243583,114920.0,114910.0,0.29860925]
[1760300363811,0.00243583,114920.0,114910.0,0.29860925]
[1760300366600,0.00243583,114920.0,114910.0,0.38813877]
[1760300367853,1e-08,114930.0,114920.0,0.17403411]
[1760300368023,1e-08,114930.0,114920.0,0.83061215]
[1760300368024,4.943e-05,114930.0,114920.0,0.83061215]
[1760300368223,4.943e-05,114930.0,114920.0,0.85601215]
[1760300368429,0.0102,114950.0,114940.0,0.17400382]
[1760300368628,0.01024942,114950.0,114940.0,0.28227334]
[1760300368884,0.01024942,114950.0,114940.0,0.34629334]
[1760300370142,1e-08,114950.0,114940.0,0.85598186]
[1760300370828,1e-08,114950.0,114940.0,0.85698186]
[1760300371264,1e-08,114950.0,114940.0,0.85598186]
[1760300371441,1e-08,114950.0,114940.0,0.85698186]
[1760300371662,1e-08,114950.0,114940.0,0.85798186]
[1760300371875,1e-08,114950.0,114940.0,0.91313375]
[1760300372100,1e-08,114950.0,114940.0,1.35313374]
[1760300372306,1e-08,114970.0,114960.0,0.68366207]
[1760300372508,1e-08,114970.0,114960.0,0.28182307]
[1760300372685,1e-08,114970.0,114960.0,0.85074159]
[1760300373031,1e-08,114970.0,114960.0,0.8768951]
[1760300373663,1e-08,114970.0,114960.0,0.36820658]
[1760300374149,0.00279309,114970.0,114960.0,0.36820658]
[1760300374559,0.00279309,114970.0,114960.0,0.36920658]
[1760300374775,1.34156438,115000.0,114990.0,0.17392816]
[1760300374991,1.34156438,115000.0,114990.0,0.29327816]
[1760300374992,1.34205897,115000.0,114990.0,0.29327816]
[1760300375521,2.10150862,115000.0,114990.0,0.29327816]
[1760300376164,1.34205897,115000.0,114990.0,0.29327816]
[1760300377628,2.10150862,115000.0,114990.0,0.0841]
[1760300377798,7.27542166,115000.0,114990.0,0.21572816]
[1760300378208,7.27542166,115000.0,114990.0,0.23970816]
[1760300379099,7.27642166,115000.0,114990.0,0.23970816]
[1760300379903,7.27642166,115000.0,114990.0,0.21572816]
[1760300380094,7.27642166,115000.0,114990.0,0.23970816]
[1760300380237,7.27742166,115000.0,114990.0,0.23970816]
[1760300380442,7.2790967,115000.0,114990.0,0.23970816]
[1760300381537,7.2790967,115000.0,114990.0,0.21572816]
[1760300381748,7.36781604,115000.0,114990.0,0.0418]
[1760300381971,7.3864675,115000.0,114990.0,0.0418]
[1760300382383,7.43280404,115000.0,114990.0,0.0418]
[1760300382578,7.45830501,115000.0,114990.0,0.0418]
[1760300382797,7.48168724,115000.0,114990.0,0.0418]
[1760300383143,7.48168724,115000.0,114990.0,0.03613825]
[1760300383626,2.48168724,115000.0,114990.0,0.03613825]
[1760300383825,7.36746693,115000.0,114990.0,0.03613825]
[1760300384572,2.36746693,115000.0,114990.0,0.03613825]
[1760300385257,7.36746693,115000.0,114990.0,0.03613825]
[1760300386191,7.36743751,115000.0,114990.0,0.03613825]
[1760300386597,7.45615685,115000.0,114990.0,0.03613825]
[1760300387206,7.48732885,115000.0,114990.0,0.03613825]
[1760300388207,7.45615685,115000.0,114990.0,0.03613825]
[1760300389630,7.48944759,115000.0,114990.0,0.03613825]
[1760300390839,2.48944759,115000.0,114990.0,0.03613825]
[1760300391091,7.48944759,115000.0,114990.0,0.03613825]
[1760300391445,2.48944759,115000.0,114990.0,0.03613825]
[1760300391850,7.48944759,115000.0,114990.0,0.03613825]
[1760300392044,7.51561132,115000.0,114990.0,0.03613825]
[1760300392245,7.56236932,115000.0,114990.0,0.03613825]
[1760300393752,2.55446703,115000.0,114990.0,0.01631954]
[1760300393951,7.53119732,115000.0,114990.0,0.01631954]
[1760300394151,7.48443932,115000.0,114990.0,0.01631954]
[1760300394329,2.48343932,115000.0,114990.0,0.01631954]
[1760300394539,7.48243932,115000.0,114990.0,0.01631954]
[1760300394743,7.48643932,115000.0,114990.0,0.01631954]
[1760300395143,2.48643932,115000.0,114990.0,0.01631954]
[1760300395462,7.48643932,115000.0,114990.0,0.01631954]
[1760300395677,7.74577705,115000.0,114990.0,0.01631954]
[1760300396044,8.25517074,115000.0,114990.0,0.01631954]
[1760300396243,8.25523988,115000.0,114990.0,0.01631954]
[1760300396446,3.25523988,115000.0,114990.0,0.01631954]
[1760300396648,8.25523988,115000.0,114990.0,0.01631954]
[1760300397047,3.25523988,115000.0,114990.0,0.01631954]
[1760300397308,8.25523988,115000.0,114990.0,0.01631954]
[1760300397838,3.25523988,115000.0,114990.0,0.01631954]
[1760300397979,8.25523988,115000.0,114990.0,0.01631954]
[1760300398174,3.25523988,115000.0,114990.0,0.01631954]
[1760300398366,8.25523988,115000.0,114990.0,0.01631954]
[1760300398786,3.25523988,115000.0,114990.0,0.01631954]
[1760300398984,8.25523988,115000.0,114990.0,0.01631954]
[1760300399187,3.302065,115000.0,114990.0,0.01631954]
[1760300399390,8.302065,115000.0,114990.0,0.01631954]
[1760300399818,3.302065,115000.0,114990.0,0.01631954]
[1760300399982,8.302065,115000.0,114990.0,0.01631954]
[1760300400366,3.302065,115000.0,114990.0,0.01631954]
[1760300400607,8.302065,115000.0,114990.0,0.01631954]
[1760300400807,3.302065,115000.0,114990.0,0.01631954]
[1760300401028,8.302065,115000.0,114990.0,0.01631954]
[1760300401458,3.302065,115000.0,114990.0,0.01631954]
[1760300401632,8.302065,115000.0,114990.0,0.01631954]
[1760300401835,3.302065,115000.0,114990.0,0.01631954]
[1760300402172,8.302065,115000.0,114990.0,0.01631954]
[1760300402361,3.302065,115000.0,114990.0,0.01631954]
[1760300402889,8.302065,115000.0,114990.0,0.01631954]
[1760300403094,3.302065,115000.0,114990.0,0.01631954]
[1760300403222,8.302065,115000.0,114990.0,0.01631954]
[1760300403857,8.27656403,115000.0,114990.0,0.01631954]
[1760300404423,3.27656403,115000.0,114990.0,0.01631954]
[1760300404949,8.27656403,115000.0,114990.0,0.01631954]
[1760300405122,3.27656403,115000.0,114990.0,0.01631954]
[1760300405327,8.27656403,115000.0,114990.0,0.01631954]
[1760300405660,3.27656403,115000.0,114990.0,0.01631954]
[1760300405794,8.2766136,115000.0,114990.0,0.01631954]
[1760300406630,3.2766136,115000.0,114990.0,0.01631954]
[1760300406935,8.2766136,115000.0,114990.0,0.01631954]
[1760300407299,8.22978848,115000.0,114990.0,0.01631954]
[1760300407947,3.22978848,115000.0,114990.0,0.01631954]
[1760300408156,8.22978848,115000.0,114990.0,0.01631954]
[1760300408356,3.29213248,115000.0,114990.0,0.01631954]
[1760300408552,8.29213248,115000.0,114990.0,0.01631954]
[1760300408761,7.72039479,115000.0,114990.0,0.01631954]
[1760300408954,2.76728226,115000.0,114990.0,0.01631954]
[1760300409159,7.76728226,115000.0,114990.0,0.01631954]
[1760300409552,2.73713036,115000.0,114990.0,0.01631954]
[1760300409750,7.40111853,115000.0,114990.0,0.01631954]
[1760300409958,7.72549757,115000.0,114990.0,0.01631954]
[1760300410163,7.38549757,115000.0,114990.0,0.01631954]
[1760300410565,7.72549757,115000.0,114990.0,0.01631954]
[1760300410773,6.70970076,115000.0,114990.0,0.2321577]
[1760300410982,7.21909445,115000.0,114990.0,0.05822954]
[1760300411356,7.55909445,115000.0,114990.0,0.05822954]
[1760300411749,7.55709445,115000.0,114990.0,0.05822954]
[1760300411950,7.64581379,115000.0,114990.0,0.05822954]
[1760300412339,7.30481379,115000.0,114990.0,0.05822954]
[1760300412531,7.64481379,115000.0,114990.0,0.05822954]
[1760300413129,7.55609445,115000.0,114990.0,0.05822954]
[1760300413325,1.36339403,115000.0,114990.0,0.2660977]
[1760300413565,1.34474257,115000.0,114990.0,0.2660977]
[1760300413725,1.85413626,115000.0,114990.0,0.2660977]
[1760300413920,1.85513626,115000.0,114990.0,0.2660977]
[1760300414161,1.51513626,115000.0,114990.0,0.2660977]
[1760300414364,1.85413626,115000.0,114990.0,0.2660977]
[1760300415122,1.34374257,115000.0,114990.0,0.2660977]
[1760300415334,1.33660989,115000.0,114990.0,0.2660977]
[1760300416393,0.99560989,115000.0,114990.0,0.35562722]
[1760300416795,0.51294765,115000.0,114990.0,0.86502091]
[1760300417023,0.00033882,115020.0,115010.0,0.20404982]
[1760300417225,0.01483425,115030.0,115020.0,0.22903469]
[1760300417424,0.0002,115040.0,115030.0,0.17386768]
[1760300417627,0.0002,115040.0,115030.0,0.3392472]
[1760300418376,0.0002,115040.0,115030.0,0.24971768]
[1760300419195,0.19964136,115080.0,115030.0,0.24971768]
[1760300419196,0.18551526,115110.0,115030.0,0.41087082]
[1760300419410,0.5351,115100.0,115090.0,0.19999998]
[1760300419620,5.56728796,115100.0,115090.0,0.0418]
[1760300420007,0.06728738,115100.0,115090.0,0.41557702]
[1760300420188,5.06728738,115100.0,115090.0,0.26679997]
[1760300420494,5.06728738,115100.0,115090.0,0.06679999]
[1760300420701,5.82707418,115100.0,115090.0,0.06679999]
[1760300420904,5.91579352,115100.0,115090.0,0.06679999]
[1760300421128,5.91579352,115100.0,115090.0,0.26679997]
[1760300421336,6.16707418,115100.0,115090.0,0.26679997]
[1760300421717,6.1270779,115100.0,115090.0,0.26679997]
[1760300421868,1.1280779,115100.0,115090.0,0.26679997]
[1760300422216,6.1280779,115100.0,115090.0,0.26679997]
[1760300422675,6.31580596,115100.0,115090.0,0.26679997]
[1760300422878,6.14204402,115100.0,115090.0,0.26679997]
[1760300423089,6.13365581,115100.0,115090.0,0.26679997]
[1760300423706,6.09850621,115100.0,115090.0,0.26679997]
[1760300423906,6.09850621,115100.0,115090.0,0.44057701]
[1760300424257,6.11542621,115100.0,115090.0,0.44057701]
[1760300424685,5.94691091,115100.0,115090.0,0.46455701]
[1760300425046,0.00014842,115110.0,115100.0,0.39876191]
[1760300425197,0.00014842,115110.0,115100.0,0.41669191]
[1760300425401,0.93195154,115110.0,115100.0,0.44067191]
[1760300425630,0.00070592,115110.0,115100.0,0.47461191]
[1760300426003,0.00070592,115110.0,115100.0,0.47361191]
[1760300426207,0.02480592,115110.0,115100.0,0.43967191]
[1760300426403,0.00070592,115110.0,115100.0,0.47361191]